[Event "44th Chess Olympiad Open 2022"]
[Site "Chennai"]
[Date "2022.07.31"]
[Round "3.63"]
[White "Hinga, Githinji"]
[Black "Ahn, Hongjin"]
[Result "1/2-1/2"]
[WhiteElo "1954"]
[BlackElo "2303"]
[Annotator "RC"]
[PlyCount "141"]
[EventDate "2022.??.??"]
[TimeControl "60"]

1. Nf3 {[%emt 0:02:00]} c5 {[%emt 0:01:32]} 2. c4 {[%emt 0:07:56]} Nf6 {
[%emt 0:03:05]} 3. Nc3 {[%emt 0:00:35]} Nc6 {[%emt 0:04:57]} 4. d3 {[%emt 0:00:
00]} g6 {[%emt 0:01:23]} 5. e4 {[%emt 0:01:47]} Bg7 {[%emt 0:00:15]} 6. Be2 {
[%emt 0:00:49]} O-O {[%emt 0:00:31]} 7. Be3 {[%emt 0:00:36]} b6 {[%emt 0:01:36]
} 8. h3 {[%emt 0:01:17]} e6 {[%emt 0:03:45]} 9. Qd2 {[%emt 0:08:37]} d5 {
[%emt 0:01:23]} 10. Bh6 {[%emt 0:01:53]} dxe4 {[%emt 0:02:00]} 11. Bxg7 {
[%emt 0:01:15]} Kxg7 {[%emt 0:00:23]} 12. dxe4 {[%emt 0:01:23]} Qxd2+ {[%emt 0:
00:00]} 13. Kxd2 {[%emt 0:00:48]} Rd8+ {[%emt 0:04:35]} 14. Ke3 {[%emt 0:01:02]
} Nd4 {[%emt 0:01:37]} 15. Bd3 {[%emt 0:01:36]} Nxf3 {[%emt 0:27:12]} 16. gxf3
{[%emt 0:00:14]} Bb7 {[%emt 0:00:10]} 17. Rad1 {[%emt 0:11:29]} Bc6 {[%emt 0:
00:00]} 18. Rhg1 {[%emt 0:01:58]} Nh5 {[%emt 0:15:43]} 19. f4 {[%emt 0:06:11]}
f5 {[%emt 0:02:43]} 20. e5 {[%emt 0:12:48]} Rd4 {[%emt 0:03:16]} 21. Ne2 {
[%emt 0:01:14]} Rad8 {[%emt 0:02:59]} 22. Nxd4 {[%emt 0:02:44]} cxd4+ {[%emt 0:
00:00]} 23. Kd2 {[%emt 0:00:40]} Nxf4 {[%emt 0:00:02]} 24. Bf1 {[%emt 0:02:28]}
Kh6 {[%emt 0:01:09]} 25. Rg3 {[%emt 0:03:43]} g5 {[%emt 0:00:45]} 26. Be2 {
[%emt 0:00:47]} Ng6 {[%emt 0:04:29]} 27. Rdg1 {[%emt 0:00:34]} Nxe5 {[%emt 0:
00:00]} 28. Rxg5 {[%emt 0:00:28]} Bf3 {[%emt 0:00:08]} 29. Rg8 {[%emt 0:10:10]}
Rd6 {[%emt 0:00:01]} 30. b3 {[%emt 0:02:35]} Bxe2 {[%emt 0:01:30]} 31. Kxe2 {
[%emt 0:00:11]} Ng6 {[%emt 0:00:19]} 32. Rg3 {[%emt 0:01:26]} e5 {[%emt 0:00:
00]} 33. Rc8 {[%emt 0:02:51]} Rd7 {[%emt 0:00:35]} 34. Rc6 {[%emt 0:02:20]} Rf7
{[%emt 0:00:41]} 35. b4 {[%emt 0:01:35]} f4 {[%emt 0:00:58]} 36. Rg4 {[%emt 0:
00:00]} e4 {[%emt 0:00:22]} 37. Re6 {[%emt 0:00:22]} e3 {[%emt 0:00:40]} 38. f3
{[%emt 0:00:27]} Kh5 {[%emt 0:00:33]} 39. Kd3 {[%emt 0:00:19]} Rd7 {[%emt 0:00:
00]} 40. a3 {[%emt 0:01:21]} Rd8 {[%emt 0:00:34]} 41. a4 {[%emt 0:30:39]} Rd7 {
[%emt 0:30:27]} 42. a5 {[%emt 0:01:37]} bxa5 {[%emt 0:00:00]} 43. bxa5 {
[%emt 0:00:00]} Rd8 {[%emt 0:00:00]} 44. h4 {[%emt 0:00:00]} Rd7 {[%emt 0:00:
00]} 45. c5 {[%emt 0:00:00]} Rb7 {[%emt 0:00:00]} 46. Kxd4 {[%emt 0:00:00]}
Rb4+ {[%emt 0:00:00]} 47. Kc3 {[%emt 0:00:00]} Rb5 {[%emt 0:00:00]} 48. Kc4 {
[%emt 0:00:00]} Rxa5 {[%emt 0:00:00]} 49. c6 {[%emt 0:00:00]} Ra1 {[%emt 0:00:
00]} 50. Kc5 {[%emt 0:00:00]} Rc1+ {[%emt 0:00:00]} 51. Kd6 {[%emt 0:00:00]}
Rd1+ {[%emt 0:00:00]} 52. Kc7 {[%emt 0:00:00]} a5 {[%emt 0:00:00]} 53. Kb6 {
[%emt 0:00:00]} a4 {[%emt 0:00:36]} 54. c7 {[%emt 0:05:10]} Rb1+ {[%emt 0:00:
00]} 55. Ka7 {[%emt 0:00:11]} Rc1 {[%emt 0:00:58]} 56. Kb7 {[%emt 0:00:04]}
Rb1+ {[%emt 0:02:01]} 57. Rb6 {[%emt 0:00:13]} Rxb6+ {[%emt 0:00:56]} 58. Kxb6
{[%emt 0:00:18]} Ne7 {[%emt 0:00:03]} 59. Rxf4 {[%emt 0:03:14]} a3 {[%emt 0:00:
00]} 60. Re4 {[%emt 0:00:34]} Nc8+ {[%emt 0:03:09]} 61. Kb7 {[%emt 0:00:49]} a2
{[%emt 0:00:22]} 62. Kxc8 {[%emt 0:00:32]} a1=Q {[%emt 0:00:09]} 63. Kd7 {
[%emt 0:00:33]} Qd1+ {[%emt 0:00:58]} 64. Ke7 {[%emt 0:00:06]} Qc2 {[%emt 0:00:
00]} 65. Kd8 {[%emt 0:00:04]} Qd3+ {[%emt 0:00:18]} 66. Ke7 {[%emt 0:00:15]}
Qc3 {[%emt 0:00:44]} 67. Kd7 {[%emt 0:00:06]} Qd2+ {[%emt 0:00:06]} 68. Ke8 {
[%emt 0:00:18]} Qc2 {[%emt 0:00:10]} 69. Kd8 {[%emt 0:00:29]} Qd1+ {[%emt 0:00:
00]} 70. Ke7 {[%emt 0:00:16]} Qc2 {[%emt 0:01:31]} 71. Kd8 {[%emt 0:02:09]}
1/2-1/2

[Event "44th Chess Olympiad Open 2022"]
[Site "Chennai"]
[Date "2022.07.31"]
[Round "3.64"]
[White "Burgos Figueroa, Carlos E."]
[Black "Adu-Poku, Kwabena"]
[Result "0-1"]
[WhiteElo "2164"]
[BlackElo "1974"]
[Annotator "RC"]
[PlyCount "128"]
[EventDate "2022.??.??"]
[TimeControl "60"]

1. e4 {[%emt 0:00:22]} c5 {[%emt 0:01:04]} 2. Nf3 {[%emt 0:00:05]} Nc6 {
[%emt 0:00:51]} 3. Bb5 {[%emt 0:00:09]} g6 {[%emt 0:00:19]} 4. O-O {[%emt 0:00:
00]} Bg7 {[%emt 0:00:05]} 5. Re1 {[%emt 0:00:04]} e5 {[%emt 0:00:48]} 6. a4 {
[%emt 0:00:45]} Nge7 {[%emt 0:00:51]} 7. Nc3 {[%emt 0:00:53]} O-O {[%emt 0:00:
00]} 8. d3 {[%emt 0:00:08]} h6 {[%emt 0:03:31]} 9. Bc4 {[%emt 0:00:11]} d6 {
[%emt 0:00:34]} 10. Nd5 {[%emt 0:00:51]} Be6 {[%emt 0:02:41]} 11. c3 {[%emt 0:
00:00]} Kh7 {[%emt 0:01:56]} 12. Ne3 {[%emt 0:01:37]} d5 {[%emt 0:04:16]} 13.
exd5 {[%emt 0:00:25]} Nxd5 {[%emt 0:00:10]} 14. Nxd5 {[%emt 0:02:49]} Bxd5 {
[%emt 0:00:14]} 15. Bb5 {[%emt 0:00:05]} Qd6 {[%emt 0:04:25]} 16. Qe2 {[%emt 0:
00:00]} Rfe8 {[%emt 0:06:20]} 17. Nd2 {[%emt 0:00:14]} a6 {[%emt 0:06:53]} 18.
Bc4 {[%emt 0:00:07]} f5 {[%emt 0:01:30]} 19. h4 {[%emt 0:02:14]} Rad8 {[%emt 0:
00:00]} 20. h5 {[%emt 0:00:25]} Bxc4 {[%emt 0:07:19]} 21. hxg6+ {[%emt 0:01:22]
} Kh8 {[%emt 0:00:16]} 22. dxc4 {[%emt 0:01:18]} Qxg6 {[%emt 0:00:11]} 23. Nf1
{[%emt 0:00:43]} Bf6 {[%emt 0:03:08]} 24. Ng3 {[%emt 0:01:08]} Rg8 {[%emt 0:00:
00]} 25. Qf3 {[%emt 0:00:52]} f4 {[%emt 0:02:41]} 26. Nf1 {[%emt 0:00:23]} Rd3
{[%emt 0:07:25]} 27. Qe4 {[%emt 0:00:06]} Qxe4 {[%emt 0:00:12]} 28. Rxe4 {
[%emt 0:00:06]} Rd1 {[%emt 0:00:09]} 29. b4 {[%emt 0:03:36]} cxb4 {[%emt 0:00:
00]} 30. cxb4 {[%emt 0:00:12]} Nxb4 {[%emt 0:06:29]} 31. Bb2 {[%emt 0:00:11]}
Rxa1 {[%emt 0:00:22]} 32. Bxa1 {[%emt 0:00:01]} Nc6 {[%emt 0:00:35]} 33. g3 {
[%emt 0:00:15]} Kg7 {[%emt 0:04:43]} 34. Kg2 {[%emt 0:02:26]} Kg6 {[%emt 0:00:
00]} 35. Kf3 {[%emt 0:00:58]} fxg3 {[%emt 0:03:15]} 36. Nxg3 {[%emt 0:03:01]}
Rd8 {[%emt 0:01:48]} 37. Ke2 {[%emt 0:00:31]} Nd4+ {[%emt 0:01:21]} 38. Bxd4 {
[%emt 0:00:24]} Rxd4 {[%emt 0:00:10]} 39. Ke3 {[%emt 0:02:49]} Bg5+ {[%emt 0:
00:00]} 40. Ke2 {[%emt 0:00:30]} Bf4 {[%emt 0:01:29]} 41. Rxd4 {[%emt 0:30:33]}
exd4 {[%emt 0:30:16]} 42. Ne4 {[%emt 0:00:13]} b6 {[%emt 0:03:07]} 43. Kd3 {
[%emt 0:07:51]} Be5 {[%emt 0:00:27]} 44. Nd2 {[%emt 0:00:37]} Kf5 {[%emt 0:00:
00]} 45. Nf3 {[%emt 0:01:16]} h5 {[%emt 0:01:45]} 46. Nh4+ {[%emt 0:02:39]} Ke6
{[%emt 0:01:08]} 47. Ke4 {[%emt 0:00:16]} Bf6 {[%emt 0:01:23]} 48. Ng6 {
[%emt 0:04:08]} h4 {[%emt 0:01:12]} 49. Nf4+ {[%emt 0:00:08]} Kd6 {[%emt 0:00:
00]} 50. Nd3 {[%emt 0:00:06]} h3 {[%emt 0:00:56]} 51. Kf3 {[%emt 0:00:10]} Be5
{[%emt 0:01:18]} 52. Nb4 {[%emt 0:00:12]} Kc5 {[%emt 0:04:30]} 53. Nd3+ {
[%emt 0:01:57]} Kxc4 {[%emt 0:00:13]} 54. Nxe5+ {[%emt 0:00:06]} Kc3 {[%emt 0:
00:00]} 55. Kg3 {[%emt 0:06:05]} d3 {[%emt 0:02:48]} 56. Nxd3 {[%emt 0:00:31]}
Kxd3 {[%emt 0:00:08]} 57. Kxh3 {[%emt 0:00:04]} b5 {[%emt 0:01:25]} 58. f4 {
[%emt 0:02:44]} Ke4 {[%emt 0:00:11]} 59. axb5 {[%emt 0:00:32]} axb5 {[%emt 0:
00:00]} 60. Kg4 {[%emt 0:00:15]} b4 {[%emt 0:00:14]} 61. f5 {[%emt 0:00:34]}
Ke5 {[%emt 0:00:48]} 62. Kg5 {[%emt 0:00:02]} b3 {[%emt 0:00:12]} 63. f6 {
[%emt 0:00:04]} Ke6 {[%emt 0:00:14]} 64. Kg6 {[%emt 0:00:39]} b2 {[%emt 0:00:
00]} 0-1

[Event "44th Chess Olympiad Open 2022"]
[Site "Chennai"]
[Date "2022.07.31"]
[Round "3.64"]
[White "Morales Carlos"]
[Black "Adu Jnr, Lionel"]
[Result "1-0"]
[WhiteElo "2036"]
[BlackElo "1824"]
[Annotator "NA RC"]
[PlyCount "106"]
[EventDate "2022.??.??"]
[TimeControl "60"]

1. Nf3 {[%emt 0:00:08]} d5 {[%emt 0:04:02]} 2. c4 {[%emt 0:00:14]} c6 {[%emt 0:
00:00]} 3. g3 {[%emt 0:00:27]} Nf6 {[%emt 0:00:19]} 4. Bg2 {[%emt 0:00:18]} g6
{[%emt 0:00:49]} 5. O-O {[%emt 0:00:31]} Bg7 {[%emt 0:00:02]} 6. d4 {[%emt 0:
00:00]} O-O {[%emt 0:00:16]} 7. Nc3 {[%emt 0:01:18]} Nbd7 {[%emt 0:05:41]} 8.
Qb3 {[%emt 0:03:20]} dxc4 {[%emt 0:09:41]} 9. Qxc4 {[%emt 0:00:08]} Nb6 {
[%emt 0:00:09]} 10. Qd3 {[%emt 0:00:33]} Be6 {[%emt 0:07:43]} 11. Rd1 {[%emt 0:
00:00]} Nbd5 {[%emt 0:17:16]} 12. e4 {[%emt 0:02:35]} Nxc3 {[%emt 0:00:29]} 13.
bxc3 {[%emt 0:00:08]} Bg4 {[%emt 0:04:24]} 14. h3 {[%emt 0:01:00]} Bxf3 {
[%emt 0:00:43]} 15. Bxf3 {[%emt 0:00:06]} e6 {[%emt 0:00:46]} 16. Rb1 {[%emt 0:
00:00]} Qa5 {[%emt 0:07:20]} 17. Rxb7 {[%emt 0:01:24]} Qxa2 {[%emt 0:01:46]}
18. Bb2 {[%emt 0:07:17]} Rab8 {[%emt 0:07:15]} 19. Ra1 {[%emt 0:15:45]} Qxa1+ {
[%emt 0:00:13]} 20. Bxa1 {[%emt 0:00:06]} Rxb7 {[%emt 0:00:03]} 21. c4 {
[%emt 0:01:36]} Rfb8 {[%emt 0:02:33]} 22. Bc3 {[%emt 0:02:10]} Rb3 {[%emt 0:00:
00]} 23. Qc2 {[%emt 0:14:09]} Nd7 {[%emt 0:07:24]} 24. e5 {[%emt 0:07:08]} c5 {
[%emt 0:04:44]} 25. dxc5 {[%emt 0:02:04]} Nxe5 {[%emt 0:02:28]} 26. Bxe5 {
[%emt 0:00:25]} Bxe5 {[%emt 0:00:16]} 27. Qe4 {[%emt 0:00:17]} Bf6 {[%emt 0:00:
00]} 28. Qf4 {[%emt 0:04:57]} Kg7 {[%emt 0:02:26]} 29. c6 {[%emt 0:05:09]} Rc8
{[%emt 0:02:12]} 30. Kg2 {[%emt 0:00:17]} a5 {[%emt 0:11:57]} 31. c5 {[%emt 0:
00:00]} Rb4 {[%emt 0:00:00]} 32. Qe3 {[%emt 0:06:38]} Bd4 {[%emt 0:00:00]} 33.
Qd3 {[%emt 0:01:14]} Ra8 {[%emt 0:00:00]} 34. c7 {[%emt 0:02:45]} Rc8 {[%emt 0:
00:00]} 35. Qa6 {[%emt 0:00:15]} Rxc7 {[%emt 0:00:00]} 36. Qxa5 {[%emt 0:00:14]
} Rb2 {[%emt 0:00:00]} 37. Qxc7 {[%emt 0:01:15]} Rxf2+ {[%emt 0:00:00]} 38. Kh1
{[%emt 0:00:15]} Rxf3 {[%emt 0:00:00]} 39. h4 {[%emt 0:01:42]} Rc3 {[%emt 0:00:
00]} 40. c6 {[%emt 0:00:12]} h5 {[%emt 0:00:00]} 41. Qd6 {[%emt 0:30:37]} Rc1+
{[%emt 0:29:34]} 42. Kg2 {[%emt 0:00:26]} Bb6 {[%emt 0:00:09]} 43. Kf3 {
[%emt 0:01:30]} Rf1+ {[%emt 0:00:54]} 44. Ke2 {[%emt 0:00:11]} Rc1 {[%emt 0:00:
00]} 45. Kd2 {[%emt 0:04:33]} Rc4 {[%emt 0:00:01]} 46. Qe5+ {[%emt 0:00:08]}
Kh7 {[%emt 0:01:08]} 47. Qb5 {[%emt 0:00:20]} Rd4+ {[%emt 0:01:01]} 48. Kc3 {
[%emt 0:00:07]} Rg4 {[%emt 0:00:41]} 49. Qxb6 {[%emt 0:00:09]} Rxg3+ {[%emt 0:
00:00]} 50. Kd2 {[%emt 0:00:39]} Rg4 {[%emt 0:00:11]} 51. Qc5 {[%emt 0:00:15]}
Rxh4 {[%emt 0:00:42]} 52. c7 {[%emt 0:00:06]} Rh2+ {[%emt 0:00:22]} 53. Ke1 {
[%emt 0:00:07]} Kh8 {[%emt 0:00:57]} 1-0

[Event "44th Chess Olympiad Open 2022"]
[Site "Chennai"]
[Date "2022.07.31"]
[Round "3.64"]
[White "Hasford, John Kojo"]
[Black "Chavez, Ricardo Ernesto"]
[Result "1-0"]
[WhiteElo "1976"]
[BlackElo "2179"]
[Annotator "RC"]
[PlyCount "83"]
[EventDate "2022.??.??"]
[TimeControl "60"]

1. d4 {[%emt 0:04:28]} Nf6 {[%emt 0:00:07]} 2. Nf3 {[%emt 0:00:16]} d6 {
[%emt 0:00:09]} 3. Bf4 {[%emt 0:00:48]} g6 {[%emt 0:01:04]} 4. e3 {[%emt 0:00:
00]} Bg7 {[%emt 0:00:07]} 5. h3 {[%emt 0:00:10]} O-O {[%emt 0:00:28]} 6. Nc3 {
[%emt 0:00:24]} b6 {[%emt 0:03:50]} 7. Bc4 {[%emt 0:01:45]} Bb7 {[%emt 0:00:12]
} 8. O-O {[%emt 0:01:03]} Nbd7 {[%emt 0:00:46]} 9. Re1 {[%emt 0:02:31]} c5 {
[%emt 0:00:38]} 10. d5 {[%emt 0:02:12]} a6 {[%emt 0:01:02]} 11. a4 {[%emt 0:00:
00]} Ne8 {[%emt 0:12:45]} 12. Rb1 {[%emt 0:02:58]} Ne5 {[%emt 0:02:24]} 13. Be2
{[%emt 0:03:55]} Nc7 {[%emt 0:05:43]} 14. e4 {[%emt 0:01:04]} Nxf3+ {[%emt 0:
00:00]} 15. Bxf3 {[%emt 0:01:39]} b5 {[%emt 0:04:14]} 16. Qd2 {[%emt 0:01:00]}
b4 {[%emt 0:07:46]} 17. Nd1 {[%emt 0:01:00]} Qd7 {[%emt 0:11:15]} 18. b3 {
[%emt 0:00:21]} Rad8 {[%emt 0:00:41]} 19. Bh6 {[%emt 0:04:16]} e5 {[%emt 0:00:
00]} 20. Bg5 {[%emt 0:02:27]} f6 {[%emt 0:01:09]} 21. Bh4 {[%emt 0:00:34]} Rde8
{[%emt 0:04:44]} 22. Nb2 {[%emt 0:03:28]} h5 {[%emt 0:07:36]} 23. Bg3 {[%emt 0:
00:00]} Qf7 {[%emt 0:03:24]} 24. Nc4 {[%emt 0:00:30]} Rd8 {[%emt 0:00:03]} 25.
Bh4 {[%emt 0:01:44]} Kh7 {[%emt 0:09:12]} 26. Qe2 {[%emt 0:02:13]} Bh6 {
[%emt 0:01:56]} 27. Rbd1 {[%emt 0:01:15]} Qg7 {[%emt 0:02:03]} 28. Bg3 {
[%emt 0:03:49]} f5 {[%emt 0:01:02]} 29. exf5 {[%emt 0:01:06]} gxf5 {[%emt 0:00:
00]} 30. Nxe5 {[%emt 0:02:11]} Rde8 {[%emt 0:03:53]} 31. Bxh5 {[%emt 0:00:55]}
dxe5 {[%emt 0:01:02]} 32. Bxe8 {[%emt 0:03:12]} f4 {[%emt 0:01:21]} 33. Qe4+ {
[%emt 0:03:54]} Kg8 {[%emt 0:00:52]} 34. Bc6 {[%emt 0:01:46]} fxg3 {[%emt 0:00:
00]} 35. f3 {[%emt 0:00:33]} Bxc6 {[%emt 0:07:54]} 36. dxc6 {[%emt 0:00:05]}
Bf4 {[%emt 0:00:36]} 37. Rd7 {[%emt 0:01:19]} Rf7 {[%emt 0:00:04]} 38. Red1 {
[%emt 0:01:31]} Ne6 {[%emt 0:00:20]} 39. Rxf7 {[%emt 0:01:01]} Qxf7 {[%emt 0:
00:00]} 40. Rd7 {[%emt 0:01:15]} Ng5 {[%emt 0:00:33]} 41. Rxf7 {[%emt 0:30:43]}
Nxe4 {[%emt 0:30:07]} 42. fxe4 {[%emt 0:01:23]} 1-0

[Event "44th Chess Olympiad Open 2022"]
[Site "Chennai"]
[Date "2022.07.31"]
[Round "3.64"]
[White "Anhwere, Bernard"]
[Black "Arias, Lemnys A."]
[Result "0-1"]
[WhiteElo "1890"]
[BlackElo "2258"]
[Annotator "RC"]
[PlyCount "72"]
[EventDate "2022.??.??"]
[TimeControl "60"]

1. d4 {[%emt 0:00:08]} Nf6 {[%emt 0:00:11]} 2. Nf3 {[%emt 0:00:06]} e6 {
[%emt 0:00:15]} 3. g3 {[%emt 0:01:16]} c5 {[%emt 0:04:12]} 4. c3 {[%emt 0:00:
00]} Be7 {[%emt 0:07:35]} 5. Bg2 {[%emt 0:00:09]} O-O {[%emt 0:00:10]} 6. O-O {
[%emt 0:00:07]} d5 {[%emt 0:01:59]} 7. Bf4 {[%emt 0:03:04]} Qb6 {[%emt 0:02:23]
} 8. Qb3 {[%emt 0:02:40]} Nc6 {[%emt 0:00:32]} 9. Qxb6 {[%emt 0:03:02]} axb6 {
[%emt 0:00:10]} 10. Nbd2 {[%emt 0:01:31]} Bd7 {[%emt 0:01:12]} 11. Rfe1 {
[%emt 0:08:59]} Rfc8 {[%emt 0:00:22]} 12. Nb3 {[%emt 0:02:25]} Ra4 {[%emt 0:00:
00]} 13. Be3 {[%emt 0:11:15]} Ne4 {[%emt 0:02:45]} 14. a3 {[%emt 0:05:06]} Be8
{[%emt 0:03:58]} 15. Rad1 {[%emt 0:07:54]} Raa8 {[%emt 0:03:41]} 16. Nfd2 {
[%emt 0:05:22]} Nxd2 {[%emt 0:03:31]} 17. Rxd2 {[%emt 0:01:00]} Na5 {[%emt 0:
00:00]} 18. Nxa5 {[%emt 0:02:40]} Rxa5 {[%emt 0:01:45]} 19. f3 {[%emt 0:11:40]}
f5 {[%emt 0:01:45]} 20. Bf2 {[%emt 0:00:59]} Bg5 {[%emt 0:00:24]} 21. Rdd1 {
[%emt 0:03:51]} Ba4 {[%emt 0:00:29]} 22. Ra1 {[%emt 0:02:16]} Bd2 {[%emt 0:00:
00]} 23. Rf1 {[%emt 0:00:22]} Raa8 {[%emt 0:04:04]} 24. Kh1 {[%emt 0:03:57]} f4
{[%emt 0:14:47]} 25. gxf4 {[%emt 0:02:14]} Bxf4 {[%emt 0:00:11]} 26. e3 {
[%emt 0:00:08]} Bd6 {[%emt 0:01:07]} 27. Bh3 {[%emt 0:01:38]} Re8 {[%emt 0:00:
00]} 28. Rg1 {[%emt 0:03:20]} e5 {[%emt 0:00:50]} 29. Bg3 {[%emt 0:00:47]} Rad8
{[%emt 0:00:20]} 30. Bh4 {[%emt 0:02:07]} Be7 {[%emt 0:00:38]} 31. Bg3 {
[%emt 0:02:31]} Bf6 {[%emt 0:00:16]} 32. dxe5 {[%emt 0:03:47]} Bxe5 {[%emt 0:
00:00]} 33. Rae1 {[%emt 0:00:39]} Bc6 {[%emt 0:02:06]} 34. Bg2 {[%emt 0:00:56]}
Bxg3 {[%emt 0:00:37]} 35. hxg3 {[%emt 0:00:06]} Re5 {[%emt 0:00:14]} 36. f4 {
[%emt 0:02:08]} Rh5+ {[%emt 0:00:25]} 0-1

[Event "44th Chess Olympiad Open 2022"]
[Site "Chennai"]
[Date "2022.07.31"]
[Round "3.65"]
[White "Bagheri, Amir"]
[Black "Barcon, Harmon"]
[Result "1-0"]
[WhiteElo "2375"]
[BlackElo "1902"]
[Annotator "RC"]
[PlyCount "67"]
[EventDate "2022.??.??"]
[TimeControl "60"]

1. c4 Nf6 2. Nf3 e6 3. g3 d5 4. Bg2 c5 5. O-O Be7 6. cxd5 exd5 7. d4 O-O 8. Nc3
h6 9. b3 Nc6 10. Bb2 Bg4 11. Ne5 cxd4 12. Nxc6 bxc6 13. Qxd4 Qb6 14. Qd3 Rad8
15. Rac1 Rfe8 16. e3 Qb7 17. Na4 Qb5 18. Qd4 a5 19. h3 Be6 20. Rfd1 Bf8 21. Qb6
Rc8 22. Bf1 Qxb6 23. Nxb6 Rc7 24. Be5 {[%emt 0:12:00]} Rb7 {[%emt 0:12:00]} 25.
Rxc6 {[%emt 0:00:30]} Rxb6 {[%emt 0:00:30]} 26. Rxb6 {[%emt 0:00:30]} Nd7 {
[%emt 0:00:30]} 27. Bb5 {[%emt 0:00:30]} Bxh3 {[%emt 0:00:30]} 28. Bxd7 {
[%emt 0:00:30]} Bxd7 {[%emt 0:00:30]} 29. Rxd5 {[%emt 0:00:30]} Be6 {[%emt 0:
00:00]} 30. Rxa5 {[%emt 0:00:30]} Rd8 {[%emt 0:00:30]} 31. Rb8 {[%emt 0:00:30]}
Rd1+ {[%emt 0:00:30]} 32. Kg2 {[%emt 0:00:30]} Bd5+ {[%emt 0:00:30]} 33. Rxd5 {
[%emt 0:00:30]} Rxd5 {[%emt 0:00:30]} 34. Bc3 {[%emt 0:00:30]} 1-0

[Event "44th Chess Olympiad Open 2022"]
[Site "Chennai"]
[Date "2022.07.31"]
[Round "3.65"]
[White "Verdier, Patrice"]
[Black "Arnold Smith"]
[Result "1-0"]
[WhiteElo "2017"]
[BlackElo "1931"]
[Annotator "NA RC"]
[PlyCount "65"]
[EventDate "2022.??.??"]
[TimeControl "60"]

1. d4 {[%emt 0:00:06]} Nf6 {[%emt 0:00:25]} 2. c4 {[%emt 0:00:09]} e6 {[%emt 0:
00:00]} 3. Nc3 {[%emt 0:00:20]} d5 {[%emt 0:01:26]} 4. cxd5 {[%emt 0:00:49]}
exd5 {[%emt 0:00:45]} 5. Bg5 {[%emt 0:00:53]} Be7 {[%emt 0:01:00]} 6. e3 {
[%emt 0:00:14]} O-O {[%emt 0:00:26]} 7. Bd3 {[%emt 0:00:20]} h6 {[%emt 0:01:20]
} 8. Bh4 {[%emt 0:00:15]} c6 {[%emt 0:02:11]} 9. Qc2 {[%emt 0:00:44]} Nbd7 {
[%emt 0:00:38]} 10. Nge2 {[%emt 0:00:22]} Re8 {[%emt 0:00:40]} 11. O-O {
[%emt 0:00:37]} Nf8 {[%emt 0:01:08]} 12. f3 {[%emt 0:09:02]} a6 {[%emt 0:05:39]
} 13. e4 {[%emt 0:04:46]} dxe4 {[%emt 0:04:18]} 14. fxe4 {[%emt 0:00:00]} Ng4 {
[%emt 0:03:24]} 15. Bxe7 {[%emt 0:00:12]} Qxe7 {[%emt 0:00:19]} 16. Rf3 {
[%emt 0:00:32]} Qh4 {[%emt 0:05:15]} 17. h3 {[%emt 0:01:50]} Nf6 {[%emt 0:00:
00]} 18. Raf1 {[%emt 0:06:54]} Be6 {[%emt 0:00:54]} 19. Qd2 {[%emt 0:12:58]}
Qg5 {[%emt 0:04:01]} 20. Qe1 {[%emt 0:03:29]} Ng6 {[%emt 0:06:40]} 21. Rg3 {
[%emt 0:07:43]} Qh4 {[%emt 0:04:18]} 22. Nf4 {[%emt 0:02:12]} Nh5 {[%emt 0:00:
00]} 23. Nxh5 {[%emt 0:06:18]} Qxh5 {[%emt 0:00:19]} 24. e5 {[%emt 0:02:26]}
Qh4 {[%emt 0:01:50]} 25. Ne4 {[%emt 0:01:28]} Kh8 {[%emt 0:02:33]} 26. Qe3 {
[%emt 0:01:54]} Rad8 {[%emt 0:03:46]} 27. Nd6 {[%emt 0:01:31]} Re7 {[%emt 0:00:
00]} 28. Bxg6 {[%emt 0:02:09]} fxg6 {[%emt 0:01:33]} 29. Rxg6 {[%emt 0:00:19]}
Bg8 {[%emt 0:01:43]} 30. Nf5 {[%emt 0:00:46]} Qh5 {[%emt 0:02:31]} 31. Nxe7 {
[%emt 0:00:10]} Re8 {[%emt 0:01:34]} 32. g4 {[%emt 0:00:55]} Qh4 {[%emt 0:00:
00]} 33. Nf5 {[%emt 0:00:23]} 1-0